Cogmind - Beta 9.6 @@@ ROGUE MODE // 2020.06.07 @ 03:24:23 Player: homogoblin Result: Destroyed by G-47 Trooper with Particle Gun Performance ------------- Evolutions (0) 0 Regions Visited (2) 400 Robots Destroyed (12) 60 Value Destroyed (187) 187 Prototype IDs (0) 0 Alien Tech Used (0) 0 Bonus (0) 0 TOTAL SCORE: 647 Bonus ------- None Cogmind --------- Core Integrity 0/250 Matter 150/300 Energy 100/100 System Corruption 0% Temperature Cool (9) Movement Core (100) Ox1 Location -10/Mines Parts ------- > --- POWER (1) -------- (None) > --- PROPULSION (2) --- (None) > --- UTILITY (2) ------ Small Storage Unit Signal Interpreter > --- WEAPON (2) ------- EM Pulse Gun > --- INVENTORY (6) ---- Light Assault Rifle Light Assault Rifle Peak State ------------ > --- POWER ------------ Light Ion Engine > --- PROPULSION ------- Aluminum Leg Aluminum Leg > --- UTILITY ---------- Small Storage Unit Signal Interpreter > --- WEAPON ----------- EM Pulse Gun Light Assault Rifle > --- INVENTORY -------- Ion Engine Light Treads Light Treads Medium Laser [Rating: 7] Favorites ----------- Power Light Ion Engine Engine Light Ion Engine Propulsion Aluminum Leg Treads Light Treads Leg Aluminum Leg Flight Unit Flight Unit Utility Small Storage Unit Storage Small Storage Unit Processor Signal Interpreter Weapon Light Assault Rifle Energy Gun EM Pulse Gun Ballistic Gun Light Assault Rifle Special Melee Weapon Datajack Build | -11 -10 -10 ------- Run | Scr Mat Min Slots Evolved . | . . . Power . | . . . Propulsion . | . . . Utility . | . . . Weapon . | . . . Parts Attached 23 | 6 14 3 Power 4 | 1 1 2 Engine 4 | 1 1 2 Core . | . . . Reactor . | . . . Propulsion 6 | 2 4 . Treads 2 | . 2 . Leg 2 | 2 . . Wheel . | . . . Hover . | . . . Flight 2 | . 2 . Utility 2 | 1 1 . Device . | . . . Storage 1 | 1 . . Processor 1 | . 1 . Hackware . | . . . Protection . | . . . Artifact . | . . . Weapon 11 | 2 8 1 Energy Gun 4 | 1 2 1 Energy Cannon . | . . . Ballistic Gun 6 | 1 5 . Ballistic Cannon . | . . . Launcher . | . . . Special Weapon . | . . . Impact Weapon . | . . . Slashing Weapon . | . . . Piercing Weapon . | . . . Special Melee Weapon 1 | . 1 . Unidentified Prototypes . | . . . Parts Lost 7 | . 2 5 Power 2 | . . 2 Propulsion 2 | . 1 1 Utility . | . . . Weapon 3 | . 1 2 Highest Loss Streak 3 | . 2 3 Average Slot Usage (%) 74 | . 87 50 Engine 10 | . 11 7 Treads 4 | . 5 1 Leg 10 | . 16 . Flight 1 | . 2 . Storage 14 | . 14 14 Processor 11 | . 10 14 Energy Gun 4 | . 5 3 Ballistic Gun 14 | . 15 11 Special Melee Weapon 2 | . 3 . Naked Turns . | . . . Heaviest Build 12 | 10 12 9 Greatest Support 40 | 20 40 3 Greatest Overweight (x) 2 | . 1 2 Average Overweight (x) . | . . 1 Largest Inventory Capacity 6 | 6 6 6 Average Capacity 5 | 5 6 6 Most Carried 6 | 6 6 3 Average Carried 3 | 3 3 1 Final Capacity 6 | 6 6 6 Final Carried 4 | 4 1 2 Class Distribution -------------------- 100% | Mutant Dominant Class ---------------- Mutant | -10/Materials Mutant | -10/Mines Resources | -11 -10 -10 ----------- Run | Scr Mat Min Matter Collected 372 | 244 63 65 Remotely . | . . . Salvage Created 220 | . 142 78 Parts 20 | . 12 8 Haulers Intercepted . | . . . Recyclers Shooed 1 | . 1 . Parts Field Recycled . | . . . Retrieved Matter . | . . . Parts Self-Destructed . | . . . Prevented . | . . . Kills | -11 -10 -10 ------- Run | Scr Mat Min Combat Hostiles Destroyed 11 | . 5 6 Guns 10 | . 5 5 AOE 1 | . . 1 Classes Destroyed 3 | . 3 . Watcher 1 | . 1 . Swarmer 9 | . 3 6 Grunt 2 | . 2 . Best Kill Streak 3 | . 2 3 Combat Bots Only 3 | . 2 3 Max Kills in Single Turn 1 | . 1 1 Gunslinging . | . . . Exploded 1 | . . 1 Melee . | . . . Uniques/NPCs Destroyed . | . . . Combat | -11 -10 -10 -------- Run | Scr Mat Min Damage Taken 1041 | . 667 374 Core 253 | . 170 83 Absorbed by Shields . | . . . Core Remaining (%) 100 | 100 . . Volleys Fired 56 | . 39 17 Largest 2 | . 2 2 Hottest 60 | . 60 40 Shots Fired 84 | . 62 22 Gun 84 | . 62 22 Cannon . | . . . Launcher . | . . . Special . | . . . Kinetic 61 | . 42 19 Thermal 4 | . 4 . Explosive . | . . . Electromagnetic 19 | . 16 3 Robot Hit Streak 9 | . 9 5 Robot Miss Streak 7 | . 4 7 Penetration Max . | . . . Secondary Targets 2 | . 2 . Max Gunslinging Chain 1 | . 1 . Shots Hit Robots 45 | . 33 12 Core Hits 16 | . 10 6 Critical Hits . | . . . Critical Kills . | . . . Critical Parts Destroyed . | . . . Melee Attacks 1 | . 1 . Impact . | . . . Slashing . | . . . Piercing . | . . . Sneak Attacks 1 | . 1 . Combat Hostiles . | . . . Follow-up Attacks . | . . . Damage Inflicted 661 | . 376 285 Guns 592 | . 376 216 Cannons . | . . . Explosions 69 | . . 69 Melee . | . . . Ramming . | . . . Kinetic 441 | . 258 183 Thermal 94 | . 25 69 Explosive . | . . . Electromagnetic 126 | . 93 33 Impact . | . . . Slashing . | . . . Piercing . | . . . Highest Corruption . | . . . Average Corruption . | . . . Corruption Purged . | . . . Overload Shots . | . . . Overflow Damage 3 | . . 3 Projectiles . | . . . Explosions 3 | . . 3 Melee . | . . . Knockbacks . | . . . Impact . | . . . Kinetic . | . . . Secondary . | . . . Self-Inflicted Damage 39 | . . 39 Shots 1 | . . 1 Rammed . | . . . Targets Rammed . | . . . Kicked . | . . . Crushed . | . . . Highest Temperature 40 | . 40 7 Average Temperature 16 | . 16 4 Received Heat Transfer 189 | . 180 9 Siege Activations . | . . . Robots Corrupted . | . . . Combat Hostiles . | . . . Parts Fried 1 | . 1 . Impact Corruptions . | . . . Robots Melted . | . . . Combat Hostiles . | . . . Parts Melted 1 | . 1 . Heat Transferred 124 | . 74 50 Parts Sabotaged . | . . . Parts Stolen . | . . . Parts Stripped . | . . . Power Chain Reactions 1 | . . 1 Missiles Intercepted . | . . . Alert | -11 -10 -10 ------- Run | Scr Mat Min Peak Influence 197 | . 197 166 Average Influence 86 | . 85 131 Maximum Alert Level . | . . . Low Security (%) 100 | 100 100 100 Level 1 . | . . . Level 2 . | . . . Level 3 . | . . . Level 4 . | . . . Level 5 . | . . . High Security . | . . . Max Security . | . . . Squads Dispatched 3 | . 3 . Investigation . | . . . Extermination . | . . . Reinforcement 3 | . 3 . Assault . | . . . Garrison . | . . . Intercept . | . . . Construction Impeded . | . . . Haulers Reinforced . | . . . Stealth | -11 -10 -10 --------- Run | Scr Mat Min Distress Signals . | . . . Communications Jammed . | . . . Distress Signals . | . . . Times Spotted 20 | . 13 7 Peak Tracking Total 4 | . 4 3 Tactical Retreats . | . . . Traps | -11 -10 -10 ------- Run | Scr Mat Min Traps Triggered 2 | . 2 . Indirectly . | . . . Trap Hack Attempts . | . . . Triggered . | . . . Disarmed . | . . . Reprogrammed . | . . . Reused . | . . . Traps Extracted . | . . . Installed . | . . . Triggered . | . . . Machines | -11 -10 -10 ---------- Run | Scr Mat Min Machines Disabled . | . . . Max in Single Turn . | . . . Machines Sabotaged . | . . . Garrisons Compromised . | . . . Overloaded Fab Kills . | . . . Fab Network Shutdowns . | . . . Hacking | -11 -10 -10 --------- Run | Scr Mat Min Machines Accessed 1 | . 1 . Terminals 1 | . 1 . Fabricators . | . . . Repair Stations . | . . . Recycling Units . | . . . Scanalyzers . | . . . Garrison Access . | . . . Total Hacks 2 | . 2 . Successful 2 | . 2 . Failed . | . . . Catastrophic . | . . . Database Lockouts . | . . . Manual . | . . . Terminals 2 | . 2 . Fabricators . | . . . Repair Stations . | . . . Recycling Units . | . . . Scanalyzers . | . . . Garrison Access . | . . . Terminal Hacks 2 | . 2 . Emergency Access Points 1 | . 1 . Zone Layout 1 | . 1 . Fabricator Hacks . | . . . Repair Station Hacks . | . . . Recycling Unit Hacks . | . . . Scanalyzer . | . . . Garrison Access Hacks . | . . . Unauthorized Hacks . | . . . Terminals . | . . . Fabricators . | . . . Repair Stations . | . . . Recycling Units . | . . . Scanalyzers . | . . . Garrison Access . | . . . Data Cores Recovered . | . . . Used . | . . . Hacking Detections . | . . . Full Trace Events . | . . . Feedback Events . | . . . Feedback Blocked . | . . . Robot Schematics Acquired . | . . . Robots Built . | . . . Matter . | . . . Time . | . . . Total Robot Build Rating . | . . . Part Schematics Acquired . | . . . Parts Built . | . . . Matter . | . . . Time . | . . . Total Part Build Rating . | . . . Parts Repaired . | . . . Time . | . . . Parts Recycled . | . . . Recycled Matter . | . . . Retrieved Matter . | . . . Retrieved Components . | . . . Parts Scanalyzed . | . . . Part Schematics Acquired . | . . . Parts Damaged . | . . . Bothacking | -11 -10 -10 ------------ Run | Scr Mat Min Used RIF Installer . | . . . Robots Hacked 1 | . 1 . Non-combat 1 | . 1 . Combat . | . . . Robot Hacks Applied 1 | . 1 . parse_system 1 | . 1 . Relay Couplers Released . | . . . Robots Rewired . | . . . Allies Hacked . | . . . Hacks Repelled . | . . . Allies | -11 -10 -10 -------- Run | Scr Mat Min Total Allies . | . . . Largest Group . | . . . Highest-Rated Group . | . . . Highest-Rated Ally . | . . . Total Orders . | . . . Ally Attacks . | . . . Total Damage . | . . . Kills . | . . . Allies Corrupted . | . . . Allies Melted . | . . . Intel | -11 -10 -10 ------- Run | Scr Mat Min Robot Analysis Total . | . . . Derelict Logs Recovered . | . . . Drone Launches . | . . . Drone Recoveries . | . . . Exploration | -11 -10 -10 ------------- Run | Scr Mat Min Turns Passed 476 | 71 264 141 Spaces Moved 255 | 49 132 74 Core 79 | 5 . 74 Treads 24 | . 24 . Legs 117 | 44 73 . Wheels . | . . . Hover . | . . . Flight 35 | . 35 . Fastest Speed 37 | 50 37 100 Average Speed 113 | 112 105 128 Slowest Speed 160 | 120 160 150 Overloaded Moves . | . . . Propulsion Burnouts . | . . . Robots Hopped . | . . . Cave-ins Triggered . | . . . Exploration Rate (%) 19 | 4 40 14 Regions Visited 2 Branch Regions 1 Pre-discovered Areas . | . . . Known Exits Taken 1 | . 1 . Unknown Exits Taken 1 | 1 . . Scrap Searched . | . . . Spaces Dug . | . . . Terrain Destroyed 1 | . . 1 Melee . | . . . Projectile . | . . . AOE 1 | . . 1 Actions | -11 -10 -10 --------- Run | Scr Mat Min Total 363 | 64 201 98 Wait . | . . . Move 253 | 48 131 74 Hop . | . . . Pick Up 23 | 10 9 4 Fast Attach . | . . . Attach 21 | 6 12 3 Detach 2 | . 2 . Swap 2 | . 2 . Drop 5 | . 5 . Fire 56 | . 39 17 Melee 1 | . 1 . Ram . | . . . Kick . | . . . Crush . | . . . Escape Stasis . | . . . Rewire . | . . . Trap . | . . . Miscellaneous . | . . . Route ------- -11/Scrapyard -10/Materials -10/Mines History --------- Turn | Location | Event 11 | -11/Scrapyard | Discovered new exit (range 15) 72 | -11/Scrapyard | Entered Materials 305 | -10/Materials | Core integrity fell below 50% 320 | -10/Materials | Discovered new exit (range 11) 329 | -10/Materials | Build established: Mutant 334 | -10/Materials | Identified exit to Mines 336 | -10/Materials | Entered Mines 431 | -10/Mines | Core integrity fell below 20% 473 | -10/Mines | Lost 3 parts (2p1w) 477 | -10/Mines | Destroyed by G-47 Trooper with Particle Gun Last Messages --------------- S-10 Pest destroyed. Lgt. Treads destroyed. S-10 Pest destroyed. Assault Rifle destroyed. S-10 Pest destroyed. Acquired 12 matter. Acquired Lgt. Ion Engine. Lgt. Ion Engine destroyed. S-10 Pest destroyed. Assault Rifle destroyed. Chain reaction triggered in Lgt. Ion Engine. S-10 Pest destroyed. Lgt. Ion Engine destroyed. Destroyed Lgt. Ion Engine. S-10 Pest destroyed. Acquired Lgt. Assault Rifle. Acquired 11 matter. Acquired Lgt. Assault Rifle. Acquired 18 matter. U-05 Engineer lays Concrete. Map ----- +----------------------------------------------------+ | ?????????????????????????????????????????????????? | | ?????????????????????????????????????????????????? | | ?????????????????????????????????????????????????? | | ?????????????????????????????????????????????????? | | ?????????????????????????????????????????????????? | | ?????????????????????????????????????????????????? | | ?????????????????????????????????????????????????? | | ?????????????????????????????????????????????????? | | ?????????????????????????????????????????????????? | | ?????????????????????????????????????????????????? | | ?????????????????????????????????????????????????? | | ?????????????????????????????????????????????????? | | ?????????????????????????????????????????????????? | | ?????????????????????????????????????????????????? | | ?????????????????????????????????????????????????? | | ?????????????????????????????????????????????????? | | ?????????????????????????????????????????????????? | | ?????????????????????????????????????????????????? | | ?????????????????????????????????????????????????? | | ?????????????????????????????????????????????????? | | ?????????????????????????????????????????????????? | | ?????????????????????????????????????????????????? | | ?????????????????????????????????????????????????? | | ????????????????????????????????##???????????????? | | ???????????????????????##### g #???????????????? | | ???????????????????????# @ #??????????????? | | ???????????????????##### ## #??????????????? | | ???????????????????# #??? ##??????????????? | | ???????????????????# #####????? #???????????????? | | ###????????????????# #???????????#???????????????? | | ##???????????????# #???????????????????????????? | | ###?????????????# #???????????????????????????? | | ##????????????# #???????????????????????????? | | ##???????????# #???????????????????????????? | | ## ##########??# #???????????????????????????? | | ?# #### #???????????????????????????? | | ?# #### ## #???????????????????????????? | | ?## ##??# ## ## ###???????????????????????????? | | ??# #???# ## ## #?????????????????????????????? | | ??## ##??## #" ## ?????????????????????????????? | | ???####??## #####????????????????????????????? | | ?????????# = #????????????????????????????????? | | ????????# #????????????????????????????????? | | ????????# ##????????????????????????????????? | | ????????## ####?????????????????????????????????? | | ?????????###?????????????????????????????????????? | | ?????????????????????????????????????????????????? | | | | | | | +----------------------------------------------------+ Best States ------------- Heat Dissipation 25 Energy Generation 10 Energy Capacity 250 Matter Stores 290 Matter Capacity 300 Sight Range 16 Terrain Scan Density 10 Evasion (%) 62 Recoil Reduction 2 Item Schematics ----------------- None Robot Schematics ------------------ None Fabricated ------------ Nothing Alien Tech Used ----------------- None Achievements -------------- None Challenges ------------ None Game ------ Seed SignalRecyclingSword Manual? 0 Play Time 00:07:55 Cumulative 2.4 hours Start 2020.06.07 @ 03:17:26 End 2020.06.07 @ 03:24:23 Sessions 1 Manual Loads 0 Difficulty Rogue Special Mode None Game No. 6 Rogue 2 Adventurer 3 Explorer 1 Win Type - Total 0 Types 0/0/0/0/0/0/0 Lore% 1 Gallery% 7 Achievement% 6 Wizard Run 0 Options --------- ASCII 0 Keyboard 0 Movement Mouse Keybinds 0 Fullscreen 1 Font 18/SmallcapsGlow Map View 76x50 Tactical HUD 0 Map Filters NONE Filters NONE Steam 1 RUN: 778133f4-0b94-4a2d-832c-ecd9156ff33b